fUSD/lending_fUSD_20250310
["ID","MTS","AMOUNT","RATE_DAILY","PERIOD"]
[355807968,1741602633807,-150.0,9.664e-05,7]
[355807969,1741602633824,-778.35,9.67e-05,2]
[355807970,1741602633840,-150.0,9.73e-05,2]
[355807971,1741602633856,-3653.84,9.73e-05,2]
[355807972,1741602633873,-999.99,9.73e-05,2]
[355807973,1741602633891,-150.0,9.732e-05,2]
[355807974,1741602633907,-150.0,9.733e-05,2]
[355807975,1741602633925,-150.0,9.74e-05,2]
[355807976,1741602633944,-150.0,9.743e-05,2]
[355807977,1741602633959,-150.0,9.743e-05,2]
[355807978,1741602633978,-150.0,9.744e-05,2]
[355807979,1741602633995,-150.0,9.747e-05,2]
[355807980,1741602634013,-150.0,9.747e-05,2]
[355807981,1741602634291,-150.0,9.747e-05,2]
[355807982,1741602634331,-150.0,9.753e-05,2]
[355807983,1741602634342,-150.0,9.755e-05,2]
[355807984,1741602634354,-150.0,9.757e-05,2]
[355807985,1741602634364,-150.0,9.758e-05,2]
[355807986,1741602634375,-150.0,9.762e-05,2]
[355807987,1741602634386,-150.0,9.763e-05,2]
[355807988,1741602634396,-420.0,9.763e-05,2]
[355807989,1741602634407,-155.0,9.763e-05,2]
[355807990,1741602634417,-150.0,9.771e-05,2]
[355807991,1741602634427,-1199.502362,9.771e-05,2]
[355807992,1741602634437,-150.0,9.774e-05,2]
[355807993,1741602634448,-150.0,9.778e-05,2]
[355807994,1741602634458,-150.0,9.781e-05,2]
[355807995,1741602634469,-150.0,9.795e-05,2]
[355807996,1741602634485,-150.0,9.799e-05,2]
[355807997,1741602634495,-150.0,9.799e-05,2]
[355807998,1741602634506,-150.0,9.801e-05,2]
[355807999,1741602634517,-150.0,9.804e-05,2]
[355808000,1741602634527,-150.0,9.804e-05,2]
[355808001,1741602634537,-150.0,9.804e-05,2]
[355808002,1741602634548,-150.0,9.808e-05,2]
[355808003,1741602634559,-150.0,9.812e-05,2]
[355808004,1741602634569,-150.0,9.817e-05,2]
[355808005,1741602634579,-150.0,9.817e-05,2]
[355808006,1741602634589,-150.0,9.822e-05,2]
[355808007,1741602634599,-150.0,9.823e-05,2]
[355808008,1741602634608,-150.0,9.828e-05,2]
[355808009,1741602634618,-150.0,9.831e-05,2]
[355808010,1741602634629,-150.0,9.833e-05,2]
[355808011,1741602634638,-150.0,9.834e-05,2]
[355808012,1741602634648,-150.0,9.838e-05,2]
[355808013,1741602634658,-150.0,9.838e-05,2]
[355808014,1741602634668,-150.0,9.846e-05,2]
[355808015,1741602634677,-150.0,9.847e-05,2]
[355808016,1741602634688,-150.0,9.849e-05,2]
[355808017,1741602634698,-150.0,9.851e-05,2]
[355808018,1741602634708,-150.0,9.855e-05,2]
[355808019,1741602634718,-150.0,9.869e-05,2]
[355808020,1741602634729,-150.0,9.87e-05,2]
[355808021,1741602634739,-150.0,9.874e-05,2]
[355808022,1741602634749,-150.0,9.878e-05,2]
[355808023,1741602634760,-150.0,9.878e-05,2]
[355808024,1741602634770,-150.0,9.879e-05,2]
[355808025,1741602634780,-150.0,9.88e-05,2]
[355808026,1741602634790,-150.0,9.88e-05,2]
[355808027,1741602634800,-150.0,9.881e-05,2]
[355808028,1741602634810,-150.0,9.885e-05,2]
[355808029,1741602634820,-150.0,9.888e-05,2]
[355808030,1741602634830,-150.0,9.893e-05,2]
[355808031,1741602634839,-150.0,9.893e-05,2]
[355808032,1741602634849,-150.0,9.907e-05,2]
[355808033,1741602634859,-150.0,9.915e-05,2]
[355808034,1741602634868,-150.0,9.917e-05,2]
[355808035,1741602634878,-150.0,9.919e-05,2]
[355808036,1741602634888,-150.0,9.92e-05,2]
[355808037,1741602634898,-150.0,9.922e-05,2]
[355808038,1741602634908,-150.0,9.922e-05,2]
[355808039,1741602634919,-150.0,9.925e-05,2]
[355808040,1741602634932,-150.0,9.929e-05,2]
[355808041,1741602634942,-150.0,9.93e-05,2]
[355808042,1741602634952,-150.0,9.93e-05,2]
[355808043,1741602634963,-150.0,9.931e-05,2]
[355808044,1741602634975,-150.0,9.939e-05,2]
[355808045,1741602634985,-150.0,9.939e-05,2]
[355808046,1741602634995,-150.0,9.94e-05,2]
[355808047,1741602635005,-150.0,9.94e-05,2]
[355808048,1741602635015,-150.0,9.941e-05,2]
[355808049,1741602635025,-150.0,9.942e-05,2]
[355808050,1741602635035,-150.0,9.942e-05,2]
[355808051,1741602635045,-150.0,9.944e-05,2]
[355808052,1741602635055,-150.0,9.949e-05,2]
[355808053,1741602635064,-150.0,9.953e-05,2]
[355808054,1741602635074,-150.0,9.954e-05,2]
[355808055,1741602635083,-150.0,9.955e-05,2]
[355808056,1741602635093,-150.0,9.955e-05,2]
[355808057,1741602635103,-150.0,9.958e-05,2]
[355808058,1741602635112,-150.0,9.958e-05,2]
[355808059,1741602635122,-150.0,9.963e-05,2]
[355808060,1741602635132,-150.0,9.964e-05,2]
[355808061,1741602635142,-150.0,9.964e-05,2]
[355808062,1741602635151,-150.0,9.965e-05,2]
[355808063,1741602635161,-150.0,9.965e-05,2]
[355808064,1741602635171,-150.0,9.971e-05,2]
[355808065,1741602635180,-150.0,9.971e-05,2]
[355808066,1741602635190,-150.0,9.972e-05,2]
[355808067,1741602635200,-150.0,9.972e-05,2]
[355808068,1741602635210,-500.0,9.973e-05,2]
[355808069,1741602635220,-150.0,9.973e-05,2]
[355808070,1741602635231,-150.0,9.974e-05,2]
[355808071,1741602635241,-150.0,9.975e-05,2]
[355808072,1741602635250,-1000.0,9.986e-05,2]
[355808073,1741602635260,-150.0,9.986e-05,2]
[355808074,1741602635269,-69177.17628323,9.99e-05,2]
[355808075,1741602635283,-44933.95163295,9.99e-05,2]
[355808076,1741602635292,-150.0,9.991e-05,2]
[355808077,1741602635302,-150.0,9.997e-05,2]
[355808078,1741602635312,-150.0,9.997e-05,2]
[355808079,1741602635321,-18002.9565016,9.997e-05,2]
[355808080,1741602635330,-493.52708199,9.999e-05,2]
[355808081,1741602635339,-1640.31,9.999e-05,2]
[355808082,1741602635348,-1999.912866,9.999e-05,2]
[355808083,1741602635358,-527.0,0.0001,2]
[355808084,1741602635367,-174.285,0.0001,2]
[355808085,1741602635376,-1825.15367044,0.0001,2]
[355808086,1741602635386,-285272.04424702,0.0001,2]
[355808087,1741602635397,-35000.0,0.0001,2]
[355808088,1741602635409,-102840.0,0.0001,2]
[355808093,1741602638212,-710.75,9.586e-05,2]
[355808094,1741602638222,-150.0,9.728e-05,2]
[355808095,1741602638233,-150.0,9.737e-05,2]
[355808096,1741602638242,-150.0,9.738e-05,2]
[355808097,1741602638251,-150.0,9.74e-05,2]
[355808098,1741602638260,-150.0,9.741e-05,2]
[355808099,1741602638269,-150.0,9.749e-05,2]
[355808100,1741602638279,-131.31705315,9.751e-05,2]
[355808101,1741602638290,-18.68294685,9.751e-05,2]
[355808102,1741602638300,-150.0,9.752e-05,2]
[355808103,1741602638309,-150.0,9.755e-05,2]
[355808104,1741602638319,-150.0,9.757e-05,2]
[355808105,1741602638328,-150.0,9.757e-05,2]
[355808106,1741602638338,-150.0,9.759e-05,2]
[355808107,1741602638347,-150.0,9.759e-05,2]
[355808108,1741602638357,-150.0,9.761e-05,2]
[355808109,1741602638366,-150.0,9.762e-05,2]
[355808111,1741602638375,-150.0,9.763e-05,2]
[355808113,1741602638385,-150.0,9.767e-05,2]
[355808114,1741602638394,-150.0,9.774e-05,2]
[355808115,1741602638404,-150.0,9.783e-05,2]
[355808116,1741602638413,-150.0,9.786e-05,2]
[355808117,1741602638423,-150.0,9.793e-05,2]
[355808118,1741602638432,-150.0,9.794e-05,2]
[355808119,1741602638441,-150.0,9.794e-05,2]
[355808120,1741602638451,-150.0,9.796e-05,2]
[355808121,1741602638460,-150.0,9.808e-05,2]
[355808122,1741602638470,-150.0,9.808e-05,2]
[355808123,1741602638479,-150.0,9.811e-05,2]
[355808124,1741602638488,-150.0,9.812e-05,2]
[355808126,1741602638498,-150.0,9.817e-05,2]
[355808128,1741602638508,-150.0,9.818e-05,2]
[355808129,1741602638517,-150.0,9.819e-05,2]
[355808130,1741602638527,-150.0,9.82e-05,2]
[355808131,1741602638537,-150.0,9.823e-05,2]
[355808132,1741602638546,-150.0,9.826e-05,2]
[355808133,1741602638556,-150.0,9.826e-05,2]
[355808134,1741602638565,-150.0,9.833e-05,2]
[355808135,1741602638575,-150.0,9.833e-05,2]
[355808136,1741602638585,-150.0,9.839e-05,2]
[355808137,1741602638594,-150.0,9.841e-05,2]
[355808138,1741602638604,-150.0,9.842e-05,2]
[355808139,1741602638614,-150.0,9.844e-05,2]
[355808140,1741602638623,-150.0,9.847e-05,2]
[355808141,1741602638633,-150.0,9.849e-05,2]
[355808142,1741602638642,-150.0,9.853e-05,2]
[355808143,1741602638652,-150.0,9.857e-05,2]
[355808144,1741602638661,-150.0,9.857e-05,2]
[355808145,1741602638671,-150.0,9.859e-05,2]
[355808146,1741602638680,-150.0,9.862e-05,2]
[355808147,1741602638690,-150.0,9.864e-05,2]
[355808148,1741602638700,-150.0,9.866e-05,2]
[355808149,1741602638709,-150.0,9.874e-05,2]
[355808150,1741602638718,-150.0,9.88e-05,2]
[355808151,1741602638729,-150.0,9.88e-05,2]
[355808152,1741602638739,-150.0,9.882e-05,2]
[355808153,1741602638748,-150.0,9.884e-05,2]
[355808154,1741602638757,-150.0,9.896e-05,2]
[355808155,1741602638767,-150.0,9.898e-05,2]
[355808156,1741602638777,-150.0,9.898e-05,2]
[355808157,1741602638786,-150.0,9.899e-05,2]
[355808158,1741602638796,-150.0,9.901e-05,2]
[355808159,1741602638807,-150.0,9.903e-05,2]
[355808160,1741602638817,-150.0,9.904e-05,2]
[355808161,1741602638826,-150.0,9.91e-05,2]
[355808162,1741602638836,-150.0,9.911e-05,2]
[355808163,1741602638845,-150.0,9.911e-05,2]
[355808164,1741602638855,-150.0,9.912e-05,2]
[355808165,1741602638865,-150.0,9.912e-05,2]
[355808166,1741602638875,-150.0,9.915e-05,2]
[355808167,1741602638884,-150.0,9.915e-05,2]
[355808168,1741602638893,-150.0,9.917e-05,2]
[355808169,1741602638903,-150.0,9.918e-05,2]
[355808170,1741602638913,-150.0,9.919e-05,2]
[355808171,1741602638923,-150.0,9.923e-05,2]
[355808172,1741602638936,-150.0,9.927e-05,2]
[355808173,1741602638945,-150.0,9.93e-05,2]
[355808174,1741602638955,-150.0,9.931e-05,2]
[355808175,1741602638964,-150.0,9.931e-05,2]
[355808176,1741602638974,-150.0,9.933e-05,2]
[355808177,1741602638987,-150.0,9.933e-05,2]
[355808178,1741602638996,-150.0,9.934e-05,2]
[355808179,1741602639007,-150.0,9.934e-05,2]
[355808180,1741602639016,-150.0,9.949e-05,2]
[355808181,1741602639026,-150.0,9.949e-05,2]
[355808182,1741602639035,-150.0,9.95e-05,2]
[355808183,1741602639045,-150.0,9.952e-05,2]
[355808184,1741602639055,-150.0,9.953e-05,2]
[355808185,1741602639064,-150.0,9.955e-05,2]
[355808186,1741602639074,-150.0,9.959e-05,2]
[355808187,1741602639084,-150.0,9.963e-05,2]
[355808188,1741602639094,-150.0,9.966e-05,2]
[355808189,1741602639104,-150.0,9.973e-05,2]
[355808190,1741602639114,-150.0,9.975e-05,2]
[355808191,1741602639124,-150.0,9.979e-05,2]
[355808192,1741602639134,-150.0,9.985e-05,2]
[355808193,1741602639143,-150.0,9.99e-05,2]
[355808194,1741602639153,-150.0,9.99e-05,2]
[355808195,1741602639162,-150.0,9.99e-05,2]
[355808196,1741602639171,-150.0,9.992e-05,2]
[355808197,1741602639181,-150.0,9.994e-05,2]
[355808198,1741602639190,-150.0,9.994e-05,2]
[355808199,1741602639200,-146838.98882262,0.0001,2]
[355808200,1741602639213,-17253.60000001,0.0001,2]
[355808201,1741602639253,-150.0,9.772e-05,2]
[355808202,1741602639263,-150.0,9.978e-05,2]
[355808203,1741602639273,-5053.11168528,0.0001,2]
[355808206,1741602640267,-150.0,9.727e-05,2]
[355808207,1741602640277,-150.0,9.727e-05,2]
[355808208,1741602640287,-38.06224798,9.729e-05,2]
[355808209,1741602640298,-111.93775202,9.729e-05,2]
[355808210,1741602640307,-150.0,9.738e-05,2]
[355808211,1741602640317,-150.0,9.738e-05,2]
[355808212,1741602640326,-150.0,9.739e-05,2]
[355808213,1741602640335,-150.0,9.757e-05,2]
[355808214,1741602640345,-150.0,9.772e-05,2]
[355808215,1741602640354,-146.54911389,9.773e-05,2]
[355808216,1741602640493,-3.45088611,9.773e-05,2]
[355808217,1741602640503,-150.0,9.773e-05,2]
[355808218,1741602640513,-150.0,9.784e-05,2]
[355808220,1741602640522,-150.0,9.788e-05,2]
[355808221,1741602640532,-150.0,9.794e-05,2]
[355808222,1741602640542,-150.0,9.8e-05,2]
[355808223,1741602640553,-150.0,9.802e-05,2]
[355808224,1741602640562,-150.0,9.815e-05,2]
[355808225,1741602640573,-150.0,9.824e-05,2]
[355808226,1741602640583,-150.0,9.831e-05,2]
[355808227,1741602640593,-150.0,9.839e-05,2]
[355808228,1741602640603,-150.0,9.851e-05,2]
[355808229,1741602640613,-150.0,9.865e-05,2]
[355808230,1741602640623,-150.0,9.88e-05,2]
[355808231,1741602640634,-102.42915006,9.901e-05,2]
[355808232,1741602640653,-47.57084994,9.901e-05,2]
[355808233,1741602640663,-150.0,9.915e-05,2]
[355808234,1741602640673,-70.56445539,9.94e-05,2]
[355808235,1741602640684,-79.43554461,9.94e-05,2]
[355808236,1741602640694,-150.0,9.943e-05,2]
[355808237,1741602640703,-150.0,9.955e-05,2]
[355808238,1741602640713,-150.0,9.963e-05,2]
[355808239,1741602640723,-150.0,9.977e-05,2]
[355808240,1741602640735,-48.40571484,9.992e-05,2]
[355808241,1741602640806,-101.59428516,9.992e-05,2]
[355808242,1741602640816,-2229.94170769,0.0001,2]
[355808267,1741602644793,-1269.85200313,0.0001,2]
[355808268,1741602644813,-2139.25655263,0.0001,2]
[355808269,1741602644840,-1541.726182,0.0001,2]
[355808273,1741602646084,-150.0,9.753e-05,2]
[355808274,1741602646094,-189.90944346,9.756e-05,2]
[355808275,1741602646103,-580.0,0.0001,2]
[355808276,1741602646113,-32486.45807298,0.0001,2]
[355808277,1741602646124,-703.65870809,0.0001,2]
[355808278,1741602646136,-421.33952001,0.0001,2]
[355808279,1741602646148,-506.17473656,0.0001,2]
[355808280,1741602646175,-550.23,0.0001,2]
[355808281,1741602646186,-484.25,0.0001,2]
[355808282,1741602646231,-958.20679999,0.0001,2]
[355808283,1741602646244,-3981.06159499,0.0001,2]
[355808284,1741602646256,-337.82000013,0.0001,2]
[355808285,1741602646267,-206764.60269596,0.0001,2]
[355808286,1741602646356,-1498.1138375,0.0001,2]
[355808287,1741602646366,-139.29055525,0.0001,2]
[355808288,1741602646378,-2465.18803461,0.0001,2]
[355808293,1741603217767,1500.008,0.0002762,30]
[355808318,1741603665081,-842.97,8.219e-05,2]
[355808326,1741603832288,-250.0,9.252e-05,2]
[355808327,1741603832300,-1000.0,9.565e-05,2]
[355808328,1741603832313,-339.47095421,9.586e-05,2]
[355808329,1741603832322,-369.37130077,9.586e-05,2]
[355808330,1741603832340,-416.62869923,9.586e-05,2]
[355808331,1741603832354,-272.692,9.586e-05,2]
[355808332,1741603832363,-150.0,9.586e-05,2]
[355808333,1741603832372,-166.045,9.586e-05,2]
[355808334,1741603832382,-160.192,9.586e-05,2]
[355808335,1741603832393,-169.493,9.586e-05,2]
[355808336,1741603832403,-150.0,9.633e-05,7]
[355808337,1741603832412,-1500.0,9.653e-05,2]
[355808338,1741603832421,-316.12,9.692e-05,2]
[355808339,1741603832434,-883.18,9.72e-05,2]
[355808340,1741603832444,-150.0,9.973e-05,2]
[355808341,1741603832454,-9391.6340666,9.996e-05,2]
[355808342,1741603832464,-150.99,9.996e-05,2]
[355808343,1741603832474,-816.457482,9.996e-05,2]
[355808344,1741603832484,-1159.862914,9.996e-05,2]
[355808345,1741603832494,-150.0,9.998e-05,2]
[355808346,1741603832504,-1571.97,9.999e-05,2]
[355808347,1741603832513,-500.0,9.999e-05,2]
[355808348,1741603832523,-356.21099985,9.999e-05,2]
[355808349,1741603832536,-522.0,0.0001,2]
[355808350,1741603832545,-174.287,0.0001,2]
[355808351,1741603832555,-118540.51377274,0.0001,2]
[355808352,1741603832612,-12448.16541727,0.0001,2]
[355808353,1741603832632,-1151.55012815,0.0001,2]
[355808354,1741603832656,-640.09000008,0.0001,2]
[355808355,1741603832673,-256.7011023,0.0001,2]
[355808356,1741603832728,-254.46,0.0001,2]
[355808364,1741603832827,-2029.88435016,0.0001,2]
[355808381,1741603838336,-1027.5007532,0.0001,2]
[355808382,1741603838347,-725.08286464,0.0001,2]
[355808383,1741603838450,-8156.25118615,0.0001,2]
[355808517,1741603840461,-19612.66921709,0.0001,2]
[355808518,1741603840473,-292.560002,0.0001,2]
[355808519,1741603840494,-5404.78800001,0.0001,2]
[355808520,1741603840522,-518.72,0.0001,2]
[355808521,1741603840537,-5247.5198923,0.0001,2]
[355808522,1741603840593,-401.44214624,0.0001,2]
[355808523,1741603840747,-527.55520127,0.0001,2]
[355808546,1741603843457,-620.82357795,0.0001,2]
[355808547,1741603843469,-863.61275,0.0001,2]
[355808548,1741603843480,-15815.55142269,0.0001,2]
[355808549,1741603843516,-1079.02,0.0001,2]
[355808550,1741603843568,-284181.27564947,0.0001,2]
[355808560,1741603844147,-525.22470966,0.0001,2]
[355808561,1741603844159,-78300.0,0.0001,2]
[355808562,1741603844187,-1994.19193065,0.0001,2]
[355808563,1741603844199,-568.69313,0.0001,2]
[355808566,1741603846382,-151.688,9.586e-05,2]
[355808567,1741603846391,-549.09768016,0.0001,2]
[355808568,1741603846404,-13625.7,0.0001,2]
[355808569,1741603846416,-678.46196361,0.0001,2]
[355808570,1741603846441,-4995.69220563,0.0001,2]
[355808571,1741603846454,-2049.27708235,0.0001,2]
[355808572,1741603846465,-394.9148337,0.0001,2]
[355808578,1741604736799,-460.56438774,8.219e-05,2]
[355808581,1741605031666,-340.25561226,8.219e-05,2]
[355808582,1741605031676,-425.1547679,9e-05,2]
[355808583,1741605031688,-124.8452321,9e-05,2]
[355808584,1741605031698,-300.0,9e-05,3]
[355808585,1741605031709,-600.0,9.1e-05,3]
[355808586,1741605031719,-164.88351666,9.146e-05,2]
[355808587,1741605031766,-300.0,9.146e-05,2]
[355808588,1741605031778,-772.1419729,9.146e-05,2]
[355808589,1741605031790,-37.64451044,9.146e-05,2]
[355808590,1741605031799,-1000.0,9.146e-05,2]
[355808591,1741605031810,-150.0,9.15e-05,2]
[355808592,1741605031820,-644.49718546,9.2e-05,3]
[355808593,1741605031831,-355.50281454,9.2e-05,3]
[355808594,1741605031841,-164.84,9.233e-05,2]
[355808595,1741605031850,-185.94806242,9.3e-05,3]
[355808596,1741605031865,-1114.05193758,9.3e-05,3]
[355808597,1741605031875,-1700.0,9.4e-05,3]
[355808598,1741605031884,-831.293214,9.452e-05,2]
[355808599,1741605031894,-300.0,9.5e-05,3]
[355808600,1741605031903,-150.0,9.562e-05,7]
[355808601,1741605031913,-155.361,9.586e-05,2]
[355808602,1741605031922,-300.0,9.6e-05,3]
[355808603,1741605031932,-300.0,9.7e-05,3]
[355808604,1741605031942,-300.0,9.8e-05,3]
[355808605,1741605031951,-89.5557779,9.9e-05,2]
[355808606,1741605031976,-410.4442221,9.9e-05,2]
[355808607,1741605031985,-865.17789596,9.9e-05,2]
[355808608,1741605032006,-243.65770404,9.9e-05,2]
[355808609,1741605032016,-361.94112733,9.9e-05,3]
[355808610,1741605032028,-483.05887267,9.9e-05,3]
[355808611,1741605032038,-1561.11161086,9.91e-05,2]
[355808612,1741605032064,-6834.64085429,9.91e-05,2]
[355808613,1741605032075,-2614.97457783,9.91e-05,2]
[355808614,1741605032087,-3859.27584048,9.91e-05,2]
[355808615,1741605032098,-3749.82863,9.91e-05,2]
[355808616,1741605032109,-2427.49534836,9.91e-05,2]
[355808627,1741605037653,-600.45761951,9.91e-05,2]
[355808628,1741605037664,-658.08440259,9.91e-05,2]
[355808629,1741605037674,-500.0,9.973e-05,2]
[355808630,1741605037683,-152.80187198,9.973e-05,2]
[355808631,1741605037692,-2358.075,9.973e-05,2]
[355808632,1741605037701,-150.0,9.979e-05,2]
[355808633,1741605037710,-7003.20790649,9.98e-05,2]
[355808634,1741605037800,-1638.0954197,9.98e-05,2]
[355808635,1741605037865,-1988.13105376,9.98e-05,2]
[355808636,1741605037877,-30260.89786639,9.98e-05,2]
[355808637,1741605038055,-1299.78861893,9.995e-05,2]
[355808638,1741605038066,-678.4893312,9.996e-05,2]
[355808639,1741605038075,-869.8474361,9.996e-05,2]
[355808640,1741605038085,-483.0494005,9.996e-05,2]
[355808641,1741605038094,-7585.387641,9.996e-05,2]
[355808642,1741605038103,-1506.47,9.999e-05,2]
[355808643,1741605038112,-500.0,9.999e-05,2]
[355808644,1741605038122,-500.0,9.999e-05,2]
[355808645,1741605038132,-500.0,9.999e-05,2]
[355808646,1741605038141,-544.64520573,9.999e-05,2]
[355808647,1741605038151,-500.0,9.999e-05,2]
[355808648,1741605038160,-500.0,9.999e-05,2]
[355808649,1741605038170,-500.0,9.999e-05,2]
[355808650,1741605038180,-500.0,9.999e-05,2]
[355808651,1741605038191,-150.0,9.999e-05,2]
[355808652,1741605038200,-828.07287659,0.0001,2]
[355808653,1741605038209,-11864.87643997,0.0001,2]
[355808654,1741605038221,-23624.3013786,0.0001,2]
[355808655,1741605038232,-1433.91078519,0.0001,2]
[355808656,1741605038243,-453.30570109,0.0001,2]
[355808663,1741605039598,-164.90676282,9.86e-05,2]
[355808664,1741605039608,-2267.91057918,0.0001,2]
[355808665,1741605039625,-702.64064826,0.0001,2]
[355808666,1741605039724,-0.00351583,0.0001,2]
[355808667,1741605039866,-7992.45000001,0.0001,2]
[355808675,1741605042852,-1225.38509055,0.0001,2]
[355808676,1741605043239,-563.33612139,0.0001,2]
[355808681,1741605045978,-532.58975567,0.0001,2]
[355808682,1741605045989,-630.33742776,0.0001,2]
[355808683,1741605046001,-73971.10559981,0.0001,2]
[355808691,1741605046071,-8012.45,0.0001,2]
[355808696,1741605046190,-5552.06392769,0.0001,2]
[355808697,1741605046206,-385.6557935,0.0001,2]
[355808698,1741605160827,10071.22486185,0.0002,120]
[355808699,1741605255450,758.39,0.00027617,30]
[355808700,1741605596192,38022.75546613,0.00027616,30]
[355808701,1741605945173,-250.0,8.219e-05,2]
[355808710,1741606160984,-398.17677745,8.219e-05,2]
[355808722,1741606231933,-112.60322255,8.219e-05,2]
[355808723,1741606231943,-550.0,9e-05,2]
[355808724,1741606231953,-150.0,9.041e-05,2]
[355808725,1741606231963,-150.0,9.041e-05,2]
[355808726,1741606231972,-150.0,9.041e-05,2]
[355808727,1741606231982,-568.61226886,9.257e-05,2]
[355808728,1741606231995,-431.38773114,9.257e-05,2]
[355808729,1741606232005,-252.89,9.377e-05,2]
[355808730,1741606232014,-151.0,9.586e-05,2]
[355808731,1741606232024,-742.08503217,9.75e-05,2]
[355808732,1741606232051,-561.44496783,9.75e-05,2]
[355808733,1741606232061,-257.65228257,9.875e-05,2]
[355808734,1741606232073,-292.34771743,9.875e-05,2]
[355808735,1741606232083,-300.0,9.899e-05,2]
[355808736,1741606232093,-272.22191002,9.9e-05,2]
[355808737,1741606232153,-520.57,9.9e-05,2]
[355808741,1741606232252,-1816.61932515,9.9e-05,2]
[355808809,1741606237687,-1765.5,9.9e-05,2]
[355808810,1741606237711,-2637.7,9.9e-05,2]
[355808811,1741606237737,-997.44167373,9.9e-05,2]
[355808812,1741606237851,-994.60042882,9.9e-05,2]
[355808813,1741606237869,-2271.20648807,9.9e-05,2]
[355808814,1741606237889,-9732.96117421,9.9e-05,2]
[355808815,1741606237905,-2104.363,9.99e-05,2]
[355808816,1741606237921,-560.53698294,9.99e-05,2]
[355808817,1741606237937,-6345.65829908,9.997e-05,2]
[355808818,1741606237955,-150.0,9.999e-05,2]
[355808819,1741606237970,-15103.43312566,0.0001,2]
[355808827,1741606238251,-2785.10396929,0.0001,2]
[355808830,1741606238263,-30997.88275691,0.0001,2]
[355808832,1741606238278,-731.479535,0.0001,2]
[355808834,1741606238289,-333.794745,0.0001,2]
[355808837,1741606238301,-1471.09,0.0001,2]
[355808839,1741606238315,-59277.34355656,0.0001,2]
[355808841,1741606238326,-833.69583873,0.0001,2]
[355808844,1741606238337,-414.04008287,0.0001,2]
[355808881,1741606239926,-805.07329912,0.0001,2]
[355808882,1741606240039,-1186.07812833,0.0001,2]
[355808883,1741606240095,-739.6,0.0001,2]
[355808899,1741606242723,-15744.62033808,0.0001,2]
[355808901,1741606242733,-603276.14584206,0.0001,2]
[355808914,1741606245972,-5038.08597263,0.0001,2]
[355808921,1741607126771,722.74,8.219e-05,2]
[355808932,1741607431854,-550.0,9.076e-05,2]
[355808933,1741607431864,-250.0,9.104e-05,2]
[355808934,1741607431874,-1000.0,9.311e-05,2]
[355808935,1741607431894,-164.84,9.508e-05,2]
[355808936,1741607431904,-50.29109877,9.704e-05,2]
[355808937,1741607431918,-365.25364323,9.704e-05,2]
[355808938,1741607431927,-500.0,9.753e-05,2]
[355808939,1741607431937,-150.0,9.863e-05,2]
[355808940,1741607431947,-300.0,9.899e-05,2]
[355808941,1741607431957,-1073.68590241,9.9e-05,2]
[355808942,1741607432013,-1909.77279759,9.9e-05,2]
[355808943,1741607432023,-500.0,9.9e-05,2]
[355808944,1741607432033,-300.0,9.9e-05,2]
[355808945,1741607432043,-9462.62973472,9.91e-05,2]
[355808946,1741607435405,-3995.24171077,9.91e-05,2]
[355808947,1741607435615,-266.884729,9.91e-05,2]
[355808970,1741607437983,-584.78514729,9.91e-05,2]
[355808971,1741607438040,-277.595,9.91e-05,2]
[355808972,1741607438091,-4147.53159016,9.91e-05,2]
[355808973,1741607438101,-550.0,9.958e-05,2]
[355808974,1741607438111,-645.32152771,9.973e-05,2]
[355808975,1741607438121,-150.0,9.995e-05,2]
[355808976,1741607438130,-6439.8746536,9.996e-05,2]
[355808977,1741607438140,-360.36901529,9.996e-05,2]
[355808978,1741607438150,-1248.81683573,9.999e-05,3]
[355808979,1741607438159,-1857.813,9.999e-05,2]
[355808980,1741607438168,-1443.7,9.999e-05,2]
[355808981,1741607438177,-5068.73008873,0.0001,2]
[355808982,1741607438189,-15394.97044736,0.0001,2]